[Event "*** SCC Grand Prix: Titled Tuesday Blitz"]
[Site "Chess.com"]
[Date "2020.09.29"]
[Round "4"]
[White "aljado"]
[Black "ajgreen"]
[Result "0-1"]
[WhiteElo "2059"]
[BlackElo "2369"]
[TimeControl "180+1"]
[EndTime "10:34:14 PDT"]
[Termination "ajgreen won by resignation"]

1. e4 {[%clk 0:03:00.9]} 1... c5 {[%clk 0:02:59.4]} 2. Nf3 {[%clk 0:02:59.7]}
2... e6 {[%clk 0:02:59.6]} 3. d4 {[%clk 0:02:57.7]} 3... cxd4 {[%clk 0:03:00.5]}
4. Nxd4 {[%clk 0:02:57.7]} 4... Nc6 {[%clk 0:03:00.8]} 5. Nc3 {[%clk 0:02:53]}
5... Nf6 {[%clk 0:03:00.8]} 6. a3 {[%clk 0:02:50.9]} 6... Be7 {[%clk 0:02:58.4]}
7. Be3 {[%clk 0:02:49.4]} 7... d6 {[%clk 0:02:51]} 8. f4 {[%clk 0:02:44.5]} 8...
O-O {[%clk 0:02:40.4]} 9. Bd3 {[%clk 0:02:42.3]} 9... e5 {[%clk 0:02:40]} 10.
Nxc6 {[%clk 0:02:38.1]} 10... bxc6 {[%clk 0:02:38.7]} 11. O-O {[%clk 0:02:37.6]}
11... exf4 {[%clk 0:02:29.5]} 12. Bxf4 {[%clk 0:02:35]} 12... Nd7 {[%clk
0:02:23.7]} 13. Bc4 {[%clk 0:02:13.5]} 13... Ne5 {[%clk 0:02:20.8]} 14. Bxe5
{[%clk 0:02:12.6]} 14... dxe5 {[%clk 0:02:21.7]} 15. Qh5 {[%clk 0:02:10.2]}
15... Qd4+ {[%clk 0:02:10.2]} 16. Rf2 {[%clk 0:02:08.5]} 16... Qxc4 {[%clk
0:02:09.7]} 17. Qxe5 {[%clk 0:02:06]} 17... Bc5 {[%clk 0:02:07]} 0-1

[Event "*** SCC Grand Prix: Titled Tuesday Blitz"]
[Site "Chess.com"]
[Date "2020.09.29"]
[Round "4"]
[White "ChessAurochs"]
[Black "FMalexhdez"]
[Result "1-0"]
[WhiteElo "2580"]
[BlackElo "2237"]
[TimeControl "180+1"]
[EndTime "10:34:28 PDT"]
[Termination "ChessAurochs won by resignation"]

1. e4 {[%clk 0:03:00.9]} 1... c5 {[%clk 0:03:00.1]} 2. Nf3 {[%clk 0:03:00.9]}
2... d6 {[%clk 0:03:00.7]} 3. d4 {[%clk 0:03:01.3]} 3... cxd4 {[%clk 0:03:01.4]}
4. Nxd4 {[%clk 0:03:02.2]} 4... Nf6 {[%clk 0:03:01.8]} 5. Nc3 {[%clk 0:03:02.8]}
5... a6 {[%clk 0:03:02.4]} 6. Be3 {[%clk 0:03:02.9]} 6... e5 {[%clk 0:03:02.8]}
7. Nb3 {[%clk 0:03:03]} 7... Be6 {[%clk 0:03:00.9]} 8. f4 {[%clk 0:03:03]} 8...
exf4 {[%clk 0:02:59.7]} 9. Bxf4 {[%clk 0:03:03.9]} 9... Nc6 {[%clk 0:03:00]} 10.
Qd2 {[%clk 0:03:02.9]} 10... Be7 {[%clk 0:02:56.1]} 11. O-O-O {[%clk 0:03:02.8]}
11... Ne5 {[%clk 0:02:55.5]} 12. Nd4 {[%clk 0:03:02.1]} 12... Rc8 {[%clk
0:02:41.3]} 13. Nf5 {[%clk 0:02:44.5]} 13... Bxf5 {[%clk 0:02:26.8]} 14. exf5
{[%clk 0:02:44.4]} 14... O-O {[%clk 0:02:21.9]} 15. h3 {[%clk 0:02:41]} 15... b5
{[%clk 0:02:18.1]} 16. g4 {[%clk 0:02:24.6]} 16... b4 {[%clk 0:02:16.4]} 17. Nd5
{[%clk 0:02:23.4]} 17... Nxd5 {[%clk 0:02:01.2]} 18. Qxd5 {[%clk 0:02:23.1]}
18... Bg5 {[%clk 0:01:57.3]} 19. Bxg5 {[%clk 0:02:15.5]} 19... Qxg5+ {[%clk
0:01:56.9]} 20. Kb1 {[%clk 0:02:15.7]} 20... Nc4 {[%clk 0:01:49.4]} 21. Bxc4
{[%clk 0:02:14.7]} 1-0

[Event "*** SCC Grand Prix: Titled Tuesday Blitz"]
[Site "Chess.com"]
[Date "2020.09.29"]
[Round "4"]
[White "swimmerchess"]
[Black "manitodeplomo"]
[Result "1-0"]
[WhiteElo "2833"]
[BlackElo "2581"]
[TimeControl "180+1"]
[EndTime "10:34:39 PDT"]
[Termination "swimmerchess won by resignation"]

1. e4 {[%clk 0:03:00.9]} 1... c5 {[%clk 0:02:51.6]} 2. Nf3 {[%clk 0:03:01]} 2...
e6 {[%clk 0:02:52]} 3. d4 {[%clk 0:03:01.4]} 3... cxd4 {[%clk 0:02:52.9]} 4.
Nxd4 {[%clk 0:03:02.3]} 4... a6 {[%clk 0:02:51]} 5. Nc3 {[%clk 0:03:02.5]} 5...
Qc7 {[%clk 0:02:50.3]} 6. Bd3 {[%clk 0:03:03.1]} 6... Nf6 {[%clk 0:02:49.4]} 7.
O-O {[%clk 0:03:03.4]} 7... b5 {[%clk 0:02:45.9]} 8. Re1 {[%clk 0:03:01.6]} 8...
d6 {[%clk 0:02:42.8]} 9. a4 {[%clk 0:02:57.8]} 9... b4 {[%clk 0:02:42.4]} 10.
Na2 {[%clk 0:02:56.4]} 10... Be7 {[%clk 0:02:34.1]} 11. Bd2 {[%clk 0:02:42.1]}
11... a5 {[%clk 0:02:31.3]} 12. c3 {[%clk 0:02:41.8]} 12... bxc3 {[%clk
0:02:29.7]} 13. Nxc3 {[%clk 0:02:39.5]} 13... O-O {[%clk 0:02:30]} 14. Rc1
{[%clk 0:02:39.6]} 14... Qb7 {[%clk 0:02:28.6]} 15. Ncb5 {[%clk 0:02:39.2]}
15... Bd7 {[%clk 0:02:28.3]} 16. Rc7 {[%clk 0:02:35.3]} 16... Qb6 {[%clk
0:02:28.5]} 17. Be3 {[%clk 0:02:35.9]} 17... Na6 {[%clk 0:01:29.2]} 18. Nf5
{[%clk 0:02:35.2]} 1-0

[Event "*** SCC Grand Prix: Titled Tuesday Blitz"]
[Site "Chess.com"]
[Date "2020.09.29"]
[Round "4"]
[White "valeriocarnicelli"]
[Black "Jumbo"]
[Result "1-0"]
[WhiteElo "2522"]
[BlackElo "2697"]
[TimeControl "180+1"]
[EndTime "10:35:00 PDT"]
[Termination "valeriocarnicelli won by resignation"]

1. e4 {[%clk 0:03:00.9]} 1... e5 {[%clk 0:02:57.5]} 2. Nf3 {[%clk 0:03:00.3]}
2... Nc6 {[%clk 0:02:57.9]} 3. d4 {[%clk 0:03:00.6]} 3... exd4 {[%clk
0:02:57.6]} 4. Bc4 {[%clk 0:03:00.9]} 4... Nf6 {[%clk 0:02:55.2]} 5. e5 {[%clk
0:03:01.3]} 5... d5 {[%clk 0:02:54.3]} 6. Bb5 {[%clk 0:03:01.2]} 6... Ne4 {[%clk
0:02:54.3]} 7. Nxd4 {[%clk 0:03:01.7]} 7... Bd7 {[%clk 0:02:54.8]} 8. Bxc6
{[%clk 0:03:01.3]} 8... bxc6 {[%clk 0:02:55.7]} 9. O-O {[%clk 0:03:01.7]} 9...
c5 {[%clk 0:02:43]} 10. Nb3 {[%clk 0:03:00.2]} 10... Bb5 {[%clk 0:02:15.8]} 11.
Re1 {[%clk 0:02:55.8]} 11... Ba6 {[%clk 0:02:05.4]} 12. f3 {[%clk 0:02:39.3]}
12... Ng5 {[%clk 0:02:03.7]} 13. Bxg5 {[%clk 0:02:38.8]} 13... Qxg5 {[%clk
0:01:57.5]} 14. Qxd5 {[%clk 0:02:39]} 14... Qd8 {[%clk 0:00:45.7]} 15. Qc6+
{[%clk 0:02:38]} 15... Ke7 {[%clk 0:00:45.4]} 16. Qxa6 {[%clk 0:02:37.6]} 1-0

[Event "*** SCC Grand Prix: Titled Tuesday Blitz"]
[Site "Chess.com"]
[Date "2020.09.29"]
[Round "4"]
[White "keepitcool9499"]
[Black "saraswathii"]
[Result "1-0"]
[WhiteElo "2616"]
[BlackElo "2382"]
[TimeControl "180+1"]
[EndTime "10:35:01 PDT"]
[Termination "keepitcool9499 won by resignation"]

1. d4 {[%clk 0:03:00.9]} 1... g6 {[%clk 0:02:57.2]} 2. c4 {[%clk 0:03:01.8]}
2... Bg7 {[%clk 0:02:53.2]} 3. Nc3 {[%clk 0:03:02.4]} 3... e6 {[%clk 0:02:48.5]}
4. e4 {[%clk 0:03:00.7]} 4... Ne7 {[%clk 0:02:45.6]} 5. Nge2 {[%clk 0:03:01.2]}
5... d5 {[%clk 0:02:43.9]} 6. f3 {[%clk 0:03:02.1]} 6... dxc4 {[%clk 0:02:41.5]}
7. Be3 {[%clk 0:03:02]} 7... O-O {[%clk 0:02:37.9]} 8. Qd2 {[%clk 0:03:01.7]}
8... a6 {[%clk 0:02:32.7]} 9. Bh6 {[%clk 0:02:28]} 9... b5 {[%clk 0:02:31.2]}
10. h4 {[%clk 0:02:27.5]} 10... f5 {[%clk 0:02:27.2]} 11. Bxg7 {[%clk
0:02:24.1]} 11... Kxg7 {[%clk 0:02:26.7]} 12. h5 {[%clk 0:02:25]} 12... Rh8
{[%clk 0:02:26.1]} 13. O-O-O {[%clk 0:02:21.4]} 13... Nbc6 {[%clk 0:02:20.9]}
14. d5 {[%clk 0:02:18.4]} 14... exd5 {[%clk 0:02:17]} 15. exd5 {[%clk
0:02:18.2]} 15... Nb4 {[%clk 0:02:12.5]} 16. Nf4 {[%clk 0:02:13.9]} 16... Qd6
{[%clk 0:02:09.3]} 17. a3 {[%clk 0:01:49.9]} 17... Nd3+ {[%clk 0:02:05.1]} 18.
Bxd3 {[%clk 0:01:45.5]} 18... cxd3 {[%clk 0:02:06]} 19. Nxd3 {[%clk 0:01:36.5]}
1-0

[Event "*** SCC Grand Prix: Titled Tuesday Blitz"]
[Site "Chess.com"]
[Date "2020.09.29"]
[Round "4"]
[White "Parhamov"]
[Black "sofaceindisguise"]
[Result "1-0"]
[WhiteElo "2966"]
[BlackElo "2713"]
[TimeControl "180+1"]
[EndTime "10:35:19 PDT"]
[Termination "Parhamov won by resignation"]

1. e4 {[%clk 0:03:00.9]} 1... c5 {[%clk 0:02:58.1]} 2. Nc3 {[%clk 0:03:00.9]}
2... Nc6 {[%clk 0:02:58.4]} 3. Bb5 {[%clk 0:03:00.2]} 3... Nd4 {[%clk
0:02:57.6]} 4. Nf3 {[%clk 0:03:00.6]} 4... e6 {[%clk 0:02:57.3]} 5. O-O {[%clk
0:03:00.3]} 5... Ne7 {[%clk 0:02:57.1]} 6. Nxd4 {[%clk 0:02:59.4]} 6... cxd4
{[%clk 0:02:58]} 7. Ne2 {[%clk 0:02:59.2]} 7... Nc6 {[%clk 0:02:58.5]} 8. c3
{[%clk 0:02:57]} 8... Bc5 {[%clk 0:02:54.8]} 9. b4 {[%clk 0:02:56.7]} 9... Bb6
{[%clk 0:02:53.5]} 10. a4 {[%clk 0:02:53]} 10... a6 {[%clk 0:02:51.6]} 11. Bxc6
{[%clk 0:02:50.4]} 11... dxc6 {[%clk 0:02:52.5]} 12. cxd4 {[%clk 0:02:45.4]}
12... Bxd4 {[%clk 0:02:49.5]} 13. Ra3 {[%clk 0:02:45.9]} 13... Bf6 {[%clk
0:02:37.2]} 14. d4 {[%clk 0:02:41.2]} 14... O-O {[%clk 0:02:32.9]} 15. Rg3
{[%clk 0:02:40.6]} 15... g6 {[%clk 0:02:32.2]} 16. Bh6 {[%clk 0:02:36.8]} 16...
Re8 {[%clk 0:02:29.9]} 17. e5 {[%clk 0:02:37.2]} 17... Be7 {[%clk 0:02:28.1]}
18. Nc3 {[%clk 0:02:36.9]} 18... Bxb4 {[%clk 0:02:20.2]} 19. Ne4 {[%clk
0:02:35.3]} 19... Be7 {[%clk 0:02:20.9]} 20. Qg4 {[%clk 0:02:31.8]} 20... b5
{[%clk 0:02:14.9]} 21. Rf3 {[%clk 0:02:28.7]} 21... bxa4 {[%clk 0:02:10.4]} 22.
h4 {[%clk 0:02:27.8]} 22... c5 {[%clk 0:02:04.8]} 23. Qf4 {[%clk 0:02:25.5]}
23... Rf8 {[%clk 0:02:00.1]} 24. Nxc5 {[%clk 0:02:24.4]} 24... a3 {[%clk
0:01:56.1]} 25. h5 {[%clk 0:02:19.1]} 25... a2 {[%clk 0:01:53.7]} 26. Ra1 {[%clk
0:02:11.6]} 26... Bxc5 {[%clk 0:01:46.8]} 27. dxc5 {[%clk 0:02:11.1]} 27... Bb7
{[%clk 0:01:47]} 28. Rd3 {[%clk 0:02:04.8]} 28... Bd5 {[%clk 0:01:46.5]} 29.
Rxa2 {[%clk 0:02:04.8]} 29... Bxa2 {[%clk 0:01:43.2]} 30. Rxd8 {[%clk
0:02:04.1]} 1-0

[Event "*** SCC Grand Prix: Titled Tuesday Blitz"]
[Site "Chess.com"]
[Date "2020.09.29"]
[Round "4"]
[White "MrChampion_Coach"]
[Black "TheMagnet"]
[Result "1-0"]
[WhiteElo "2372"]
[BlackElo "2586"]
[TimeControl "180+1"]
[EndTime "10:35:37 PDT"]
[Termination "MrChampion_Coach won by resignation"]

1. d4 {[%clk 0:03:00.9]} 1... Nf6 {[%clk 0:03:00.1]} 2. c4 {[%clk 0:03:00.3]}
2... g6 {[%clk 0:03:00.6]} 3. Nc3 {[%clk 0:02:59.6]} 3... Bg7 {[%clk 0:03:01.2]}
4. e4 {[%clk 0:02:58.5]} 4... d6 {[%clk 0:03:01.7]} 5. h3 {[%clk 0:02:55.8]}
5... O-O {[%clk 0:03:01.6]} 6. Be3 {[%clk 0:02:56.3]} 6... c5 {[%clk 0:02:55.8]}
7. Nf3 {[%clk 0:02:54.4]} 7... cxd4 {[%clk 0:02:55.4]} 8. Nxd4 {[%clk
0:02:55.3]} 8... Nc6 {[%clk 0:02:55.9]} 9. Be2 {[%clk 0:02:54.2]} 9... Bd7
{[%clk 0:02:55.5]} 10. O-O {[%clk 0:02:52.5]} 10... Nxd4 {[%clk 0:02:55.8]} 11.
Bxd4 {[%clk 0:02:53.4]} 11... Bc6 {[%clk 0:02:56.5]} 12. Qc2 {[%clk 0:02:53.9]}
12... a5 {[%clk 0:02:54.8]} 13. Rad1 {[%clk 0:02:48.2]} 13... Nd7 {[%clk
0:02:48]} 14. Bxg7 {[%clk 0:02:46.7]} 14... Kxg7 {[%clk 0:02:48.9]} 15. Bg4
{[%clk 0:02:47]} 15... Ne5 {[%clk 0:02:33.7]} 16. c5 {[%clk 0:02:46.4]} 16...
Nxg4 {[%clk 0:02:11.3]} 17. hxg4 {[%clk 0:02:47.3]} 17... Qc8 {[%clk 0:02:11.4]}
18. cxd6 {[%clk 0:02:34.5]} 18... exd6 {[%clk 0:01:56.5]} 19. g5 {[%clk
0:02:16.5]} 19... Qg4 {[%clk 0:01:42.8]} 20. Nd5 {[%clk 0:02:16.2]} 20... Qxg5
{[%clk 0:01:24.3]} 21. f4 {[%clk 0:02:15.7]} 21... Qh4 {[%clk 0:01:24.3]} 22.
Qc3+ {[%clk 0:02:14]} 22... Kh6 {[%clk 0:01:17.8]} 23. Rf3 {[%clk 0:02:06.6]}
23... Bxd5 {[%clk 0:01:17.7]} 24. Rh3 {[%clk 0:02:02.4]} 24... Qxh3 {[%clk
0:01:10]} 25. Qxh3+ {[%clk 0:02:03.3]} 25... Kg7 {[%clk 0:01:10.2]} 26. Qc3+
{[%clk 0:02:03.1]} 26... Kg8 {[%clk 0:01:09.1]} 27. Rxd5 {[%clk 0:02:00.8]} 1-0

[Event "*** SCC Grand Prix: Titled Tuesday Blitz"]
[Site "Chess.com"]
[Date "2020.09.29"]
[Round "4"]
[White "abfchess"]
[Black "MFBerna"]
[Result "0-1"]
[WhiteElo "2096"]
[BlackElo "2376"]
[TimeControl "180+1"]
[EndTime "10:36:01 PDT"]
[Termination "MFBerna won by resignation"]

1. d4 {[%clk 0:03:00.1]} 1... Nf6 {[%clk 0:02:59.6]} 2. Nf3 {[%clk 0:02:59.8]}
2... e6 {[%clk 0:02:59.3]} 3. Bg5 {[%clk 0:02:59.4]} 3... h6 {[%clk 0:02:58.7]}
4. Bh4 {[%clk 0:02:59.3]} 4... d5 {[%clk 0:02:57.4]} 5. e3 {[%clk 0:02:59.3]}
5... Be7 {[%clk 0:02:57.8]} 6. Bd3 {[%clk 0:02:59.2]} 6... b6 {[%clk 0:02:57.5]}
7. c3 {[%clk 0:02:59.6]} 7... Bb7 {[%clk 0:02:57.9]} 8. Nbd2 {[%clk 0:03:00.1]}
8... Nbd7 {[%clk 0:02:58.4]} 9. O-O {[%clk 0:03:00.8]} 9... O-O {[%clk
0:02:58.3]} 10. Ne5 {[%clk 0:03:01.1]} 10... Nxe5 {[%clk 0:02:58.6]} 11. dxe5
{[%clk 0:03:02]} 11... Nd7 {[%clk 0:02:57.9]} 12. Bxe7 {[%clk 0:02:59.9]} 12...
Qxe7 {[%clk 0:02:58.8]} 13. f4 {[%clk 0:02:59.6]} 13... f6 {[%clk 0:02:54.3]}
14. exf6 {[%clk 0:02:49.8]} 14... Nxf6 {[%clk 0:02:55.2]} 15. Rf3 {[%clk
0:02:48.8]} 15... e5 {[%clk 0:02:54.5]} 16. fxe5 {[%clk 0:02:42.5]} 16... Qxe5
{[%clk 0:02:55.4]} 17. Rg3 {[%clk 0:02:43]} 17... Rae8 {[%clk 0:02:39.2]} 18.
Qe2 {[%clk 0:02:40.9]} 18... Nh5 {[%clk 0:02:10.1]} 19. Rf3 {[%clk 0:02:31.8]}
19... Rxf3 {[%clk 0:02:05.3]} 20. Nxf3 {[%clk 0:02:31.2]} 20... Qxe3+ {[%clk
0:02:00.7]} 21. Qxe3 {[%clk 0:02:31.3]} 21... Rxe3 {[%clk 0:02:01.6]} 22. Bg6
{[%clk 0:02:29.1]} 22... Nf4 {[%clk 0:02:00.4]} 23. Bf5 {[%clk 0:02:28.9]} 23...
g6 {[%clk 0:01:47.7]} 24. Bg4 {[%clk 0:02:05.4]} 24... h5 {[%clk 0:01:45.3]} 25.
Bd7 {[%clk 0:02:02]} 25... Re2 {[%clk 0:01:35.7]} 26. Re1 {[%clk 0:01:49.5]}
26... Rxg2+ {[%clk 0:01:09.3]} 27. Kf1 {[%clk 0:01:45.3]} 27... Ba6+ {[%clk
0:01:09.1]} 0-1

[Event "*** SCC Grand Prix: Titled Tuesday Blitz"]
[Site "Chess.com"]
[Date "2020.09.29"]
[Round "4"]
[White "maxsergej"]
[Black "MariaFominykh"]
[Result "1-0"]
[WhiteElo "2097"]
[BlackElo "2320"]
[TimeControl "180+1"]
[EndTime "10:36:01 PDT"]
[Termination "maxsergej won by resignation"]

1. e4 {[%clk 0:03:00.8]} 1... d6 {[%clk 0:02:58.7]} 2. d4 {[%clk 0:03:00.4]}
2... Nf6 {[%clk 0:02:58.8]} 3. Nc3 {[%clk 0:03:00.6]} 3... e5 {[%clk 0:02:58.5]}
4. Nf3 {[%clk 0:02:59.2]} 4... Nbd7 {[%clk 0:02:57.2]} 5. Bc4 {[%clk 0:02:53.3]}
5... Be7 {[%clk 0:02:56.7]} 6. O-O {[%clk 0:02:48.4]} 6... O-O {[%clk
0:02:55.9]} 7. Re1 {[%clk 0:02:45.9]} 7... c6 {[%clk 0:02:47.9]} 8. Bb3 {[%clk
0:02:43.2]} 8... b5 {[%clk 0:02:45.7]} 9. a3 {[%clk 0:02:42.1]} 9... a6 {[%clk
0:02:41.6]} 10. h3 {[%clk 0:02:41.6]} 10... Bb7 {[%clk 0:02:35.3]} 11. Bg5
{[%clk 0:02:40.5]} 11... h6 {[%clk 0:02:34.4]} 12. Bh4 {[%clk 0:02:39.6]} 12...
Nh7 {[%clk 0:02:31.2]} 13. Bg3 {[%clk 0:02:34.9]} 13... Ng5 {[%clk 0:02:25.4]}
14. dxe5 {[%clk 0:02:25.6]} 14... Nxf3+ {[%clk 0:02:22.3]} 15. Qxf3 {[%clk
0:02:25]} 15... dxe5 {[%clk 0:02:17.1]} 16. Rad1 {[%clk 0:02:16.6]} 16... Qe8
{[%clk 0:01:59.3]} 17. Qf5 {[%clk 0:02:04.6]} 17... Bc8 {[%clk 0:01:42.2]} 18.
Bxe5 {[%clk 0:01:27.6]} 18... Nc5 {[%clk 0:01:40.6]} 19. Qg6 {[%clk 0:01:20.3]}
1-0

[Event "*** SCC Grand Prix: Titled Tuesday Blitz"]
[Site "Chess.com"]
[Date "2020.09.29"]
[Round "4"]
[White "mishanick"]
[Black "alexrustemov"]
[Result "1-0"]
[WhiteElo "3004"]
[BlackElo "2729"]
[TimeControl "180+1"]
[EndTime "10:36:07 PDT"]
[Termination "mishanick won by resignation"]

1. d4 {[%clk 0:03:00.9]} 1... d5 {[%clk 0:02:59.3]} 2. c4 {[%clk 0:03:00.7]}
2... e6 {[%clk 0:02:59.2]} 3. Nf3 {[%clk 0:03:00.2]} 3... Nf6 {[%clk 0:02:58.2]}
4. Nc3 {[%clk 0:03:00.6]} 4... Be7 {[%clk 0:02:58.1]} 5. Bf4 {[%clk 0:02:58.7]}
5... O-O {[%clk 0:02:57.9]} 6. e3 {[%clk 0:02:58.9]} 6... b6 {[%clk 0:02:58.6]}
7. cxd5 {[%clk 0:02:58.9]} 7... Nxd5 {[%clk 0:02:58.4]} 8. Nxd5 {[%clk
0:02:59.1]} 8... exd5 {[%clk 0:02:59.3]} 9. Bd3 {[%clk 0:02:58.9]} 9... c5
{[%clk 0:02:59.9]} 10. b3 {[%clk 0:02:59]} 10... Be6 {[%clk 0:02:55.1]} 11. O-O
{[%clk 0:02:58.6]} 11... c4 {[%clk 0:02:47.9]} 12. bxc4 {[%clk 0:02:51.2]} 12...
dxc4 {[%clk 0:02:48.8]} 13. Be4 {[%clk 0:02:51.8]} 13... Bd5 {[%clk 0:02:48.7]}
14. Qc2 {[%clk 0:02:52.4]} 14... Nc6 {[%clk 0:01:47.8]} 15. Bxh7+ {[%clk
0:02:46.8]} 15... Kh8 {[%clk 0:01:47.8]} 16. Be4 {[%clk 0:02:46.7]} 16... Rc8
{[%clk 0:01:45.2]} 17. a3 {[%clk 0:02:38.4]} 17... b5 {[%clk 0:01:44.6]} 18. Nd2
{[%clk 0:02:30.8]} 18... a6 {[%clk 0:01:27.8]} 19. h3 {[%clk 0:02:21.2]} 19...
Bxe4 {[%clk 0:01:21.4]} 20. Nxe4 {[%clk 0:02:21.1]} 20... Na5 {[%clk 0:01:11.5]}
21. Nc3 {[%clk 0:02:15]} 21... Nb3 {[%clk 0:01:11]} 22. Ra2 {[%clk 0:02:15.3]}
22... Qd7 {[%clk 0:01:09.4]} 23. Qe4 {[%clk 0:02:04.9]} 23... Rfd8 {[%clk
0:01:07.2]} 24. Be5 {[%clk 0:01:56.5]} 24... f6 {[%clk 0:01:04.7]} 25. Bg3
{[%clk 0:01:54.8]} 25... a5 {[%clk 0:01:05.1]} 26. Rb1 {[%clk 0:01:51.8]} 26...
b4 {[%clk 0:01:03.9]} 27. axb4 {[%clk 0:01:51.4]} 27... axb4 {[%clk 0:01:04.8]}
28. Ne2 {[%clk 0:01:47.9]} 28... Ra8 {[%clk 0:01:01.9]} 29. Rxa8 {[%clk
0:01:46.9]} 1-0

[Event "*** SCC Grand Prix: Titled Tuesday Blitz"]
[Site "Chess.com"]
[Date "2020.09.29"]
[Round "4"]
[White "Godzillator"]
[Black "FearNoEvil12"]
[Result "1-0"]
[WhiteElo "2330"]
[BlackElo "2060"]
[TimeControl "180+1"]
[EndTime "10:36:07 PDT"]
[Termination "Godzillator won by resignation"]

1. d4 {[%clk 0:03:00.9]} 1... b5 {[%clk 0:02:58.6]} 2. e4 {[%clk 0:03:00]} 2...
a6 {[%clk 0:02:58.6]} 3. Bd3 {[%clk 0:02:59.1]} 3... Bb7 {[%clk 0:02:58.9]} 4.
f4 {[%clk 0:02:58.5]} 4... e6 {[%clk 0:02:58.7]} 5. Nf3 {[%clk 0:02:58.6]} 5...
Nf6 {[%clk 0:02:58.5]} 6. Nbd2 {[%clk 0:02:57.9]} 6... c5 {[%clk 0:02:58.5]} 7.
c3 {[%clk 0:02:57.6]} 7... Qb6 {[%clk 0:02:57.5]} 8. e5 {[%clk 0:02:52.8]} 8...
Nd5 {[%clk 0:02:55.9]} 9. Nb3 {[%clk 0:02:49.2]} 9... c4 {[%clk 0:02:54.7]} 10.
Nc5 {[%clk 0:02:44.9]} 10... cxd3 {[%clk 0:02:52.2]} 11. Nxb7 {[%clk 0:02:44.6]}
11... Qxb7 {[%clk 0:02:50.7]} 12. Qxd3 {[%clk 0:02:44.8]} 12... Nc6 {[%clk
0:02:48.7]} 13. Bd2 {[%clk 0:02:43.8]} 13... h6 {[%clk 0:02:46.1]} 14. O-O
{[%clk 0:02:43.4]} 14... d6 {[%clk 0:02:43.5]} 15. f5 {[%clk 0:02:40.9]} 15...
dxe5 {[%clk 0:02:41.7]} 16. fxe6 {[%clk 0:02:41.1]} 16... fxe6 {[%clk
0:02:40.4]} 17. Nxe5 {[%clk 0:02:40.4]} 17... Nxe5 {[%clk 0:02:30.7]} 18. dxe5
{[%clk 0:02:40.6]} 18... O-O-O {[%clk 0:02:29.4]} 19. Qh3 {[%clk 0:02:37.9]}
19... Qb6+ {[%clk 0:02:25.8]} 20. Kh1 {[%clk 0:02:36.6]} 20... Bc5 {[%clk
0:02:22.7]} 21. a4 {[%clk 0:02:36.1]} 21... Rd7 {[%clk 0:02:10.8]} 22. axb5
{[%clk 0:02:36]} 22... Kb8 {[%clk 0:01:59.3]} 23. bxa6 {[%clk 0:02:31.1]} 23...
Ka7 {[%clk 0:01:57.9]} 24. b4 {[%clk 0:02:28.7]} 24... Be3 {[%clk 0:01:54.4]}
25. Be1 {[%clk 0:02:19.1]} 25... Rc8 {[%clk 0:01:50.2]} 26. Rf3 {[%clk
0:02:06.3]} 26... Bg5 {[%clk 0:01:41.3]} 27. Bf2 {[%clk 0:02:02.9]} 27... Ne3
{[%clk 0:01:35.6]} 28. Rxe3 {[%clk 0:02:00.7]} 28... Rcd8 {[%clk 0:01:30.2]} 29.
Qf3 {[%clk 0:01:53.4]} 29... Bxe3 {[%clk 0:01:13]} 30. Bxe3 {[%clk 0:01:53.5]}
30... Rd1+ {[%clk 0:01:12.4]} 31. Rxd1 {[%clk 0:01:51.6]} 31... Rxd1+ {[%clk
0:01:12.2]} 32. Qxd1 {[%clk 0:01:51.4]} 32... Qxe3 {[%clk 0:01:12.5]} 33. Qd4+
{[%clk 0:01:47]} 33... Qxd4 {[%clk 0:01:11]} 34. cxd4 {[%clk 0:01:47.3]} 34...
Kxa6 {[%clk 0:01:11.3]} 35. d5 {[%clk 0:01:47.5]} 35... exd5 {[%clk 0:01:09.7]}
36. e6 {[%clk 0:01:47.9]} 1-0

[Event "*** SCC Grand Prix: Titled Tuesday Blitz"]
[Site "Chess.com"]
[Date "2020.09.29"]
[Round "4"]
[White "Marcin"]
[Black "Ermito2020"]
[Result "0-1"]
[WhiteElo "2470"]
[BlackElo "2678"]
[TimeControl "180+1"]
[EndTime "10:36:12 PDT"]
[Termination "Ermito2020 won by resignation"]

1. d4 {[%clk 0:03:00.9]} 1... e6 {[%clk 0:02:59.3]} 2. c4 {[%clk 0:02:59]} 2...
f5 {[%clk 0:02:59.7]} 3. g3 {[%clk 0:02:56.4]} 3... Nf6 {[%clk 0:02:59.9]} 4.
Bg2 {[%clk 0:02:56.9]} 4... Be7 {[%clk 0:02:59.4]} 5. Nc3 {[%clk 0:02:57.5]}
5... O-O {[%clk 0:02:59]} 6. Nf3 {[%clk 0:02:54.8]} 6... d5 {[%clk 0:02:57.8]}
7. O-O {[%clk 0:02:51.9]} 7... c6 {[%clk 0:02:57.7]} 8. b3 {[%clk 0:02:49.2]}
8... Nbd7 {[%clk 0:02:54.9]} 9. Bf4 {[%clk 0:02:41.2]} 9... Qe8 {[%clk
0:02:48.8]} 10. Ne5 {[%clk 0:02:33.4]} 10... Ne4 {[%clk 0:02:41.9]} 11. Nxe4
{[%clk 0:02:30]} 11... fxe4 {[%clk 0:02:40.5]} 12. Nxd7 {[%clk 0:02:30.7]} 12...
Bxd7 {[%clk 0:02:40]} 13. Be5 {[%clk 0:02:31.1]} 13... Qh5 {[%clk 0:02:34.5]}
14. f3 {[%clk 0:02:27.8]} 14... exf3 {[%clk 0:02:32.2]} 15. exf3 {[%clk
0:02:27.3]} 15... Be8 {[%clk 0:02:29]} 16. f4 {[%clk 0:02:18]} 16... Qxd1 {[%clk
0:02:23.7]} 17. Raxd1 {[%clk 0:02:18.9]} 17... Bg6 {[%clk 0:02:23.5]} 18. Bh3
{[%clk 0:02:15.4]} 18... Bf5 {[%clk 0:02:22.6]} 19. Bxf5 {[%clk 0:02:15.4]}
19... exf5 {[%clk 0:02:19.3]} 20. cxd5 {[%clk 0:02:16]} 20... cxd5 {[%clk
0:02:18.7]} 21. Rc1 {[%clk 0:02:16.6]} 21... Rac8 {[%clk 0:02:17.9]} 22. Rfe1
{[%clk 0:02:12.5]} 22... Ba3 {[%clk 0:02:17]} 23. Rxc8 {[%clk 0:02:06.4]} 23...
Rxc8 {[%clk 0:02:17.9]} 24. Re2 {[%clk 0:02:06.8]} 24... Kf7 {[%clk 0:02:16.1]}
25. Kg2 {[%clk 0:02:06.9]} 25... a5 {[%clk 0:02:14.6]} 26. Kf2 {[%clk
0:02:00.1]} 26... g6 {[%clk 0:02:12.5]} 27. Ke3 {[%clk 0:01:59.6]} 27... Rc3+
{[%clk 0:02:10.9]} 28. Kd2 {[%clk 0:01:55.4]} 28... Rc8 {[%clk 0:02:06.5]} 29.
Kd3 {[%clk 0:01:47.2]} 29... Bb4 {[%clk 0:01:47.7]} 30. h3 {[%clk 0:01:39.5]}
30... h5 {[%clk 0:01:36.8]} 31. g4 {[%clk 0:01:38.6]} 31... Rc3+ {[%clk
0:01:36.1]} 32. Kd2 {[%clk 0:01:31.7]} 32... Rxh3+ {[%clk 0:01:37]} 33. Kd1
{[%clk 0:01:28.2]} 33... fxg4 {[%clk 0:01:34.6]} 34. Rc2 {[%clk 0:01:18.4]}
34... Rh1+ {[%clk 0:01:34.1]} 35. Ke2 {[%clk 0:01:18.6]} 35... Rh2+ {[%clk
0:01:34.2]} 36. Kd3 {[%clk 0:01:19.3]} 36... Rxc2 {[%clk 0:01:35]} 37. Kxc2
{[%clk 0:01:20.2]} 0-1